bitfinex/quotes_ETHUSD_20251006
["timestamp","ask_amount","ask_price","bid_price","bid_amount"]
[1759744877365,0.002,4575.7,4575.4,2.4]
[1759744877577,0.002,4575.7,4575.3,11.548]
[1759744877867,2.62554249,4575.6,4575.3,11.548]
[1759744878169,0.44,4575.5,4575.3,0.148]
[1759744878329,2.18553054,4575.6,4575.3,0.148]
[1759744878527,0.44,4575.5,4575.3,0.148]
[1759744879541,0.44,4575.4,4575.3,0.148]
[1759744880254,2.909,4575.4,4575.3,0.148]
[1759744880628,5.09460125,4575.4,4575.3,0.148]
[1759744881573,5.09460125,4575.4,4575.3,0.149]
[1759744882233,5.09380125,4575.4,4575.3,0.149]
[1759744883251,2.9082,4575.4,4575.3,0.149]
[1759744883440,5.09380125,4575.4,4575.3,0.149]
[1759744884049,2.9082,4575.4,4575.3,0.149]
[1759744884442,5.09380125,4575.4,4575.3,0.149]
[1759744884735,2.9082,4575.4,4575.3,0.149]
[1759744886043,2.7602,4575.4,4575.3,0.001]
[1759744887046,2.469,4575.4,4575.3,0.001]
[1759744887249,0.002,4575.7,4575.3,0.45235649]
[1759744887453,2.468,4575.6,4575.4,2.8295]
[1759744887652,2.468,4575.6,4575.5,0.1096]
[1759744889372,2.468,4575.6,4575.5,2.9391]
[1759744889573,2.468,4575.6,4575.5,0.5391]
[1759744890178,2.468,4575.6,4575.5,0.1096]
[1759744890960,2.468,4575.6,4575.5,13.9096]
[1759744896491,2.912,4575.6,4575.5,2.4]
[1759744898167,2.468,4575.6,4575.5,2.4]
[1759744898589,0.002,4575.7,4575.5,2.4]
[1759744898805,0.002,4575.7,4575.6,2.5096]
[1759744899008,0.002,4575.7,4575.6,3.50815959]
[1759744899210,0.002,4575.7,4575.6,5.88630454]
[1759744899211,2.47,4575.7,4575.6,5.88630454]
[1759744899967,0.002,4575.7,4575.6,17.28630454]
[1759744900169,0.433,4575.7,4575.6,18.84859912]
[1759744900368,0.002,4575.7,4575.6,18.84859912]
[1759744900973,0.002,4575.7,4575.6,17.28630454]
[1759744906908,0.0012,4575.7,4575.6,17.28630454]
[1759744908181,0.0012,4575.7,4575.6,14.66299882]
[1759744908578,0.0012,4575.7,4575.6,16.84850454]
[1759744909892,0.0012,4575.7,4575.6,14.66299882]
[1759744911320,0.0012,4575.7,4575.6,16.84850454]
[1759744913613,0.0012,4575.7,4575.6,5.44850454]
[1759744913817,0.0012,4575.7,4575.6,5.88630454]
[1759744914152,0.0012,4575.7,4575.6,17.28630454]
[1759744914443,0.0012,4575.7,4575.6,19.48219912]
[1759744915219,0.0012,4575.7,4575.6,17.91990454]
[1759744918020,0.0012,4575.7,4575.6,17.92090454]
[1759744920827,0.0012,4575.7,4575.6,18.00833174]
[1759744922851,2.014,4576.7,4575.8,0.6336]
[1759744923034,2.014,4576.7,4576.4,2.18508592]
[1759744923426,2.014,4576.7,4576.5,2.18505846]
[1759744923754,2.014,4576.7,4576.1,1.56250031]
[1759744923953,2.014,4576.7,4576.2,2.4]
[1759744924158,2.014,4576.7,4576.3,2.18516899]
[1759744924939,0.4425,4576.6,4576.3,2.18516899]
[1759744925334,0.4425,4576.6,4576.0,3.96250031]
[1759744925531,0.4425,4576.6,4576.1,0.82410689]
[1759744925762,0.4425,4576.5,4575.8,1.56250031]
[1759744925934,0.4425,4576.4,4575.8,2.18539987]
[1759744926270,0.4425,4576.4,4575.7,2.4]
[1759744926439,0.4425,4576.3,4575.7,2.4]
[1759744927068,0.4425,4576.3,4575.8,2.18536392]
[1759744927565,0.4425,4576.2,4575.7,3.96250031]
[1759744927766,0.4425,4576.1,4575.8,0.4465708]
[1759744928063,0.4425,4576.1,4575.7,6.14792099]
[1759744928064,0.4425,4576.1,4575.7,1.56250031]
[1759744928266,2.18516603,4576.4,4575.6,11.401]
[1759744928436,0.4425,4576.0,4575.7,2.4]
[1759744928963,0.4425,4575.9,4575.7,2.4]
[1759744929343,2.014,4576.7,4575.7,2.4]
[1759744929548,0.4425,4576.4,4575.8,2.1854102]
[1759744930263,2.18503495,4576.6,4575.9,2.18532117]
[1759744930264,0.4425,4576.6,4575.9,2.18532117]
[1759744930462,2.466,4576.5,4576.0,2.18528632]
[1759744930771,0.4425,4576.4,4575.9,2.18535114]
[1759744930939,0.4425,4576.4,4575.8,2.18540408]
[1759744931138,0.4425,4576.4,4576.1,2.18526631]
[1759744931362,0.4417,4576.4,4576.1,2.18526631]
[1759744931880,2.19119199,4577.8,4576.5,2.1850759]
[1759744931881,2.19122174,4577.8,4576.5,2.1850759]
[1759744932172,2.466,4577.1,4576.4,2.18512175]
[1759744932758,2.466,4577.1,4576.8,0.1096]
[1759744933469,2.9085,4577.1,4576.8,0.1096]
[1759744933668,2.466,4577.0,4576.8,0.1096]
[1759744933980,0.03034546,4577.2,4576.8,0.13144932]
[1759744934194,2.466,4576.9,4576.8,16.0945327]
[1759744934489,0.03034546,4577.2,4576.9,2.4]
[1759744934675,2.466,4577.1,4576.9,2.4]
[1759744936056,2.466,4577.1,4576.9,4.58487797]
[1759744936057,2.466,4577.0,4576.9,4.58487797]
[1759744936253,0.002,4577.1,4577.0,2.64003722]
[1759744936452,0.002,4577.1,4577.0,0.5648]
[1759744936770,0.002,4577.1,4577.0,2.29443722]
[1759744937156,0.002,4577.1,4577.0,2.74963722]
[1759744938289,0.002,4577.1,4577.0,5.17148559]
[1759744938491,0.002,4577.1,4577.0,6.22887344]
[1759744938664,0.002,4577.1,4577.0,18.26247344]
[1759744938853,0.002,4577.1,4577.0,19.82497375]
[1759744939181,0.002,4577.1,4577.0,18.26247344]
[1759744939352,0.002,4577.1,4577.0,20.72847344]
[1759744939752,0.002,4577.1,4577.0,18.26247344]
[1759744940182,0.002,4577.1,4577.0,20.72847344]
[1759744940888,0.002,4577.1,4577.0,18.26247344]
[1759744945187,0.002,4577.1,4577.0,19.82024192]
[1759744945364,0.002,4577.1,4577.0,18.26247344]
[1759744945565,0.002,4577.1,4577.0,19.82023748]
[1759744950385,0.002,4577.1,4577.0,18.26247344]
[1759744950894,0.002,4577.1,4577.0,18.34987218]
[1759744955711,0.0012,4577.1,4577.0,18.34987218]
[1759744957615,0.002,4577.6,4577.5,2.81819858]
[1759744957917,0.002,4577.6,4577.5,5.82808507]
[1759744958116,0.002,4577.6,4577.5,6.26708507]
[1759744958317,0.002,4577.6,4577.5,17.66708507]
[1759744958891,0.002,4577.6,4577.5,17.22808507]
[1759744959098,0.002,4577.6,4577.5,17.66708507]
[1759744959427,0.454,4578.8,4577.5,17.66708507]
[1759744959428,0.454,4578.8,4577.7,0.6336]
[1759744959736,0.454,4578.7,4577.8,0.6336]
[1759744959893,0.454,4578.6,4577.7,2.4]
[1759744960089,2.18389054,4579.0,4578.0,2.4]
[1759744960391,0.454,4578.5,4578.0,2.4]
[1759744960619,0.454,4578.4,4578.0,2.4]
[1759744961196,0.454,4578.3,4578.0,2.4]
[1759744961491,0.454,4578.2,4578.0,2.4]
[1759744961691,0.454,4578.1,4578.0,2.4]
[1759744963893,0.454,4578.1,4578.0,4.58435998]
[1759744965725,2.18398371,4578.8,4578.0,4.58435998]
[1759744965935,0.454,4578.4,4578.0,4.58435998]
[1759744966099,0.454,4578.3,4578.0,2.4]
[1759744966293,0.454,4578.2,4578.0,2.4]
[1759744967346,4.64903124,4578.7,4578.0,2.4]
[1759744967513,0.454,4578.2,4578.0,2.4]
[1759744967833,0.454,4578.2,4578.0,4.58435123]
[1759744968138,0.454,4578.2,4578.0,2.4]
[1759744968634,0.454,4578.2,4578.0,2.18435522]
[1759744969132,0.454,4578.2,4578.1,11.4]
[1759744969340,0.454,4578.2,4578.1,11.5096]
[1759744970443,4.64902941,4578.7,4578.2,2.4]
[1759744970644,0.20450783,4578.6,4578.2,2.4]
[1759744970813,4.64902941,4578.7,4578.4,0.1096]
[1759744971141,0.454,4578.5,4578.4,0.1096]
[1759744971712,2.63812143,4578.5,4578.4,0.1096]
[1759744971935,2.18416914,4578.4,4577.7,1.55613799]
[1759744972136,2.18437773,4578.0,4577.9,0.1096]
[1759744972538,2.18437773,4578.0,4577.9,11.5096]
[1759744972539,2.63837773,4578.0,4577.9,11.5096]
[1759744972743,2.84290789,4578.0,4577.9,0.1096]
[1759744972910,3.23313016,4578.0,4577.3,0.1096]
[1759744973112,2.18474461,4577.2,4577.0,0.1106]
[1759744973340,0.1096,4577.7,4577.0,0.1106]
[1759744973640,0.65568109,4578.1,4577.2,0.6336]
[1759744973814,0.454,4578.9,4577.7,1.55613799]
[1759744973815,0.538,4578.3,4577.7,1.55613799]
[1759744974010,0.538,4578.3,4578.0,2.29395182]
[1759744974212,0.538,4578.3,4577.9,2.18440769]
[1759744974434,0.538,4578.3,4577.9,0.65795457]
[1759744974638,0.538,4578.3,4578.1,2.4]
[1759744975014,0.538,4578.3,4577.9,2.84235727]
[1759744975410,0.538,4578.3,4578.0,2.4]
[1759744975743,0.538,4578.3,4578.2,11.4]
[1759744977843,0.992,4578.3,4577.6,1.55613799]
[1759744978144,0.454,4578.2,4577.8,2.4]
[1759744978512,0.454,4578.1,4577.6,4.17730271]
[1759744978923,0.454,4578.1,4577.6,3.96184311]
[1759744979151,0.538,4578.3,4578.0,2.4]
[1759744979525,0.454,4578.2,4578.0,2.4]
[1759744980041,0.454,4578.1,4578.0,2.4]
[1759744980250,0.4532,4578.1,4578.0,2.4]
[1759744980454,0.538,4578.3,4578.0,2.4]
[1759744981548,0.538,4578.3,4577.2,1.55613799]
[1759744981864,2.18455296,4577.6,4577.3,11.4]
[1759744982165,4.66459858,4577.5,4577.3,11.4]
[1759744982328,2.934,4577.4,4577.3,13.8]
[1759744982927,2.48,4577.4,4577.3,11.4]
[1759744983125,2.48,4577.4,4577.3,13.8]
[1759744983324,5.1119463,4577.4,4577.3,2.4]
[1759744984066,2.48,4577.4,4577.3,2.4]
[1759744984851,4.6646463,4577.4,4577.3,2.4]
[1759744985048,5.1119463,4577.4,4577.3,2.4]
[1759744985356,2.9273,4577.4,4577.3,2.4]
[1759744985552,2.48,4577.4,4577.3,2.4]
[1759744985850,4.6646463,4577.4,4577.3,2.4]
[1759744986458,5.1119463,4577.4,4577.3,2.4]
[1759744986761,4.6646463,4577.4,4577.3,2.4]
[1759744987257,2.48,4577.4,4577.3,13.8]
[1759744987631,4.6646463,4577.4,4577.3,13.8]
[1759744987833,5.1119463,4577.4,4577.3,13.8]
[1759744988056,2.18478949,4577.1,4577.0,0.001]
[1759744988438,2.63208949,4577.1,4577.0,0.001]
[1759744988755,2.5896,4577.4,4577.0,0.001]
[1759744988925,2.29424969,4577.4,4577.0,0.001]
[1759744989124,4.66471173,4577.3,4577.0,0.001]
[1759744989527,2.1847533,4577.2,4577.0,0.001]
[1759744989757,4.6647533,4577.2,4577.0,0.001]
[1759744990056,2.63208949,4577.1,4577.0,0.001]
[1759744990358,5.75325395,4577.1,4577.0,0.001]
[1759744990657,2.83608739,4577.1,4577.0,0.001]
[1759744990844,2.94568739,4577.1,4577.0,0.001]
[1759744992437,5.42768739,4577.1,4577.0,0.001]
[1759744993157,2.94568739,4577.1,4577.0,0.001]
[1759744993326,5.22368949,4577.1,4577.0,0.001]
[1759744993730,2.74168949,4577.1,4577.0,0.001]
[1759744993957,5.22368949,4577.1,4577.0,0.001]
[1759744994546,5.42728211,4577.1,4577.0,0.001]
[1759744995264,5.22368949,4577.1,4577.0,0.001]
[1759744997546,5.42715673,4577.1,4577.0,0.001]
[1759744998472,5.42713177,4577.1,4577.0,0.001]
[1759745000378,5.53673177,4577.1,4577.0,0.001]
[1759745003876,3.05473177,4577.1,4577.0,0.001]
[1759745004489,5.53473177,4577.1,4577.0,0.001]
[1759745004695,5.53393177,4577.1,4577.0,0.001]
[1759745006094,5.5338917,4577.1,4577.0,0.001]
[1759745006262,3.0538917,4577.1,4577.0,0.001]
[1759745006467,2.85048949,4577.1,4577.0,0.001]
[1759745006666,5.53394027,4577.1,4577.0,0.001]
[1759745006892,5.33048949,4577.1,4577.0,0.001]
[1759745007266,5.53400018,4577.1,4577.0,0.001]
[1759745010802,8.56760018,4577.1,4577.0,0.001]
[1759745011369,8.56760018,4577.1,4575.4,0.001]
[1759745011370,2.18545796,4575.7,4575.4,0.001]
[1759745011587,4.86896865,4575.7,4575.4,0.001]
[1759745012193,4.95644613,4575.7,4575.4,0.001]
[1759745012901,4.95675667,4575.7,4575.4,0.001]
[1759745016204,2.47675667,4575.7,4575.6,0.4708]
[1759745016584,4.95575667,4575.7,4575.6,0.4708]
[1759745016904,2.47675667,4575.7,4575.6,0.4708]
[1759745017207,4.66445796,4575.7,4575.6,0.4708]
[1759745017505,4.66445796,4575.7,4575.6,0.001]
[1759745017702,4.66445796,4575.7,4575.6,0.4708]
[1759745018885,4.8684345,4575.7,4575.6,0.001]
[1759745019087,5.8093345,4575.7,4575.6,0.001]
[1759745019499,5.3392345,4575.7,4575.6,0.001]
[1759745019698,5.8093345,4575.7,4575.6,0.001]
[1759745020013,8.2093345,4575.7,4575.6,0.001]
[1759745020187,8.2093345,4575.7,4575.1,0.001]
[1759745020188,2.1856968,4575.2,4575.1,0.001]
[1759745020393,4.86967334,4575.2,4575.1,0.001]
[1759745020580,5.33977334,4575.2,4575.1,0.001]
[1759745021406,5.44937334,4575.2,4575.1,0.001]
[1759745021907,5.64917334,4575.2,4575.1,0.001]
[1759745022744,5.17907334,4575.2,4575.1,0.001]
[1759745023219,5.64917334,4575.2,4575.1,0.001]
[1759745025017,5.44937334,4575.2,4575.1,0.001]
[1759745025594,5.44925063,4575.2,4575.1,0.001]
[1759745025795,2.49915063,4575.2,4575.1,0.001]
[1759745026021,4.97915063,4575.2,4575.1,0.001]
[1759745026320,2.49915063,4575.2,4575.1,0.4708]
[1759745026531,4.97815063,4575.2,4575.1,0.4708]
[1759745027634,4.97815063,4575.2,4575.1,0.001]
[1759745028031,5.44825063,4575.2,4575.1,0.001]
[1759745029132,4.97735063,4575.2,4575.1,0.001]
[1759745030439,2.49835063,4575.2,4575.1,0.001]
[1759745030752,2.49835063,4575.2,4575.1,0.4708]
[1759745031121,4.97635063,4575.2,4575.1,0.4708]
[1759745032835,4.6628968,4575.2,4575.1,0.4708]
[1759745033338,4.866849,4575.2,4575.1,0.4708]
[1759745033534,4.6628968,4575.2,4575.1,0.4708]
[1759745033722,2.1848968,4575.2,4575.1,0.4708]
[1759745033930,0.002,4575.8,4575.1,0.4708]
[1759745034136,2.68194657,4575.7,4575.1,0.4708]
[1759745034447,0.20394657,4575.6,4575.1,0.4708]
[1759745034627,2.18564902,4575.3,4575.2,0.4698]
[1759745034825,4.66364902,4575.3,4575.2,0.4698]
[1759745035030,2.478,4575.3,4575.2,0.4698]
[1759745035717,4.66364902,4575.3,4575.2,0.4698]
[1759745037046,2.478,4575.3,4575.2,0.4698]
[1759745037235,4.66364902,4575.3,4575.2,0.4698]
[1759745037551,2.478,4575.3,4575.2,0.4698]
[1759745038826,4.66364902,4575.3,4575.2,0.4698]
[1759745040217,2.477,4575.3,4575.2,0.4698]
[1759745040416,2.18564902,4575.3,4575.2,0.4698]
[1759745040642,4.66264902,4575.3,4575.2,0.4698]
[1759745040841,2.1856968,4575.2,4575.1,0.001]
[1759745041955,2.86010652,4575.2,4575.1,0.001]
[1759745042650,2.86010652,4575.2,4574.6,0.001]
[1759745042651,2.18574457,4575.1,4574.6,0.001]
[1759745042951,2.18593568,4574.7,4574.6,0.001]
[1759745043158,4.8682454,4574.7,4574.6,0.001]
[1759745043653,5.3323454,4574.7,4574.6,0.001]
[1759745044239,5.33235033,4574.7,4574.6,0.001]
[1759745044754,4.86825033,4574.7,4574.6,0.001]
[1759745048058,2.39025033,4574.7,4574.6,0.001]
[1759745048258,2.18772476,4575.2,4574.6,0.4353]
[1759745048558,4.66278504,4575.1,4574.6,0.4353]
[1759745048769,2.477,4575.1,4574.6,0.4353]
[1759745048927,2.18579234,4575.0,4574.6,0.4353]
[1759745049127,2.477,4574.9,4574.6,0.4353]
[1759745049744,2.18593269,4574.8,4574.6,0.4353]
[1759745050058,2.477,4574.7,4574.6,0.4353]
[1759745051062,4.66293568,4574.7,4574.6,0.4353]
[1759745051434,2.477,4574.7,4574.6,0.4353]
[1759745053361,2.476,4574.7,4574.6,0.4353]
[1759745053655,2.476,4574.7,4574.6,3.09971571]
[1759745053656,2.4752,4574.7,4574.6,3.09971571]
[1759745054329,2.4752,4574.7,4574.6,14.49971571]
[1759745054533,4.3296,4575.1,4574.6,14.49971571]
[1759745054731,2.476,4575.0,4574.7,0.4343]
[1759745055160,2.476,4574.9,4574.7,0.4343]
[1759745055349,6.51534496,4575.1,4574.8,0.4343]
[1759745055549,2.476,4575.0,4574.9,0.4343]
[1759745055835,4.66179234,4575.0,4574.9,0.4343]
[1759745056137,2.476,4575.0,4574.9,0.4343]
[1759745056459,4.3296,4575.1,4574.9,0.4343]
[1759745056668,4.66179234,4575.0,4574.9,0.4343]
[1759745056868,2.476,4575.0,4574.6,0.001]
[1759745057039,4.6618115,4575.0,4574.6,0.001]
[1759745057239,2.18584012,4574.9,4574.6,0.001]
[1759745057434,2.476,4574.8,4574.6,0.4353]
[1759745057655,2.476,4574.7,4574.6,0.001]
[1759745058670,2.476,4574.7,4574.6,0.4353]
[1759745060449,2.476,4574.7,4574.6,0.001]
[1759745061456,2.476,4574.7,4574.6,0.4353]
[1759745063247,2.478,4574.7,4574.6,0.4353]
[1759745064884,2.478,4574.7,4574.6,0.001]
[1759745066674,2.476,4574.7,4574.6,0.001]
[1759745067579,2.476,4574.7,4574.6,0.4353]
[1759745068479,0.002,4574.7,4574.6,1.52689658]
[1759745068672,2.476,4574.7,4574.6,1.52689658]
[1759745071086,4.66193568,4574.7,4574.6,0.001]
[1759745071987,5.12603568,4574.7,4574.6,0.001]
[1759745072285,5.23563568,4574.7,4574.6,0.001]
[1759745072454,5.4398966,4574.7,4574.6,0.001]
[1759745073483,5.3302966,4574.7,4574.6,0.001]
[1759745073885,2.8562966,4574.7,4574.6,0.001]
[1759745074258,5.3302966,4574.7,4574.6,0.001]
[1759745078170,5.3294966,4574.7,4574.6,0.001]
[1759745083505,4.9749966,4574.7,4574.6,0.001]
[1759745089409,5.4295966,4574.7,4574.6,0.001]
[1759745089575,4.9749966,4574.7,4574.6,0.001]
[1759745090010,4.97505336,4574.7,4574.6,0.001]
[1759745090613,4.77073568,4574.7,4574.6,0.001]
[1759745092612,4.86549427,4574.7,4574.6,0.001]
[1759745092814,5.32009427,4574.7,4574.6,0.001]
[1759745093195,4.86549427,4574.7,4574.6,0.001]
[1759745094016,4.66113568,4574.7,4574.6,0.001]
[1759745095411,4.86556721,4574.7,4574.6,0.001]
[1759745097307,5.32016721,4574.7,4574.6,0.001]
[1759745099006,4.86556721,4574.7,4574.6,0.001]
[1759745099214,5.32016721,4574.7,4574.6,0.001]
[1759745099920,2.18617463,4574.2,4574.1,0.001]
[1759745100219,4.86260616,4574.2,4574.1,0.001]
[1759745100440,8.4445007,4574.2,4574.1,0.001]
[1759745100730,2.18641362,4573.7,4573.6,1e-08]
[1759745100944,7.99113969,4573.7,4573.6,1e-08]
[1759745101095,8.44573969,4573.7,4573.6,1e-08]
[1759745101294,5.31844515,4573.7,4573.6,1e-08]
[1759745101611,8.53326656,4573.7,4573.6,1e-08]
[1759745102701,8.64206656,4573.7,4573.6,1e-08]
[1759745106303,9.27566656,4573.7,4573.6,1e-08]
[1759745106502,9.27533733,4573.7,4573.6,1e-08]
[1759745106925,11.67533733,4573.7,4573.6,1e-08]
[1759745107510,11.67525065,4573.7,4573.6,1e-08]
[1759745109912,13.49465065,4573.7,4573.6,1e-08]
[1759745110312,13.92935065,4573.7,4573.6,1e-08]
[1759745113043,5.62035611,4573.7,4573.6,1e-08]
[1759745113212,2.58675611,4573.7,4573.6,1e-08]
[1759745113418,5.05975611,4573.7,4573.6,1e-08]
[1759745114432,5.05975611,4573.7,4573.6,0.46640001]
[1759745114626,5.05975611,4573.7,4573.6,1e-08]
[1759745115628,2.58675611,4573.7,4573.6,1e-08]
[1759745115829,5.05975611,4573.7,4573.6,1e-08]
[1759745116844,5.69335611,4573.7,4573.6,1e-08]
[1759745117045,6.12805611,4573.7,4573.6,1e-08]
[1759745117845,8.52805611,4573.7,4573.6,1e-08]
[1759745118045,19.82805611,4573.7,4573.6,1e-08]
[1759745119268,22.13005611,4573.7,4573.6,1e-08]
[1759745119469,19.82805611,4573.7,4573.6,1e-08]
[1759745120763,22.52065065,4573.7,4573.6,1e-08]
[1759745121362,22.95535065,4573.7,4573.6,1e-08]
[1759745122277,22.52065065,4573.7,4573.6,1e-08]
[1759745122458,22.95535065,4573.7,4573.6,1e-08]
[1759745124284,2.18689177,4572.7,4572.6,0.4674]
[1759745124461,4.65989177,4572.7,4572.6,0.4674]
[1759745126571,4.65989177,4572.7,4572.6,0.001]
[1759745126878,4.86403695,4572.7,4572.6,0.001]
[1759745127069,5.49683695,4572.7,4572.6,0.001]
[1759745127252,8.79893695,4572.7,4572.6,0.001]
[1759745127453,3.0336,4572.6,4571.3,0.001]
[1759745127679,2.18751367,4571.4,4571.3,0.001]
[1759745127905,4.66051367,4571.4,4571.3,0.001]
[1759745129564,4.66051367,4571.4,4571.3,0.4674]
[1759745129971,4.66051367,4571.4,4571.3,0.001]
[1759745130166,4.66051367,4571.4,4571.3,0.4674]
[1759745131789,0.4674,4571.9,4571.3,0.4674]
[1759745131988,2.19344266,4571.8,4571.3,0.4674]
[1759745132155,1.989,4571.7,4571.3,0.4674]
[1759745132357,2.473,4571.6,4571.3,0.4674]
[1759745132660,4.66046546,4571.6,4571.3,0.4674]
[1759745132860,2.18746582,4571.5,4571.4,0.4328]
[1759745133058,2.473,4571.6,4571.3,0.001]
[1759745133766,2.473,4571.6,4571.4,0.4328]
[1759745134166,0.1096,4571.5,4571.4,0.4328]
[1759745135164,2.29706582,4571.5,4571.4,0.4328]
[1759745138392,2.18751367,4571.4,4571.3,0.001]
[1759745138591,4.66051367,4571.4,4571.3,0.001]
[1759745140089,4.86489588,4571.4,4571.3,0.001]
[1759745141292,4.86489588,4571.4,4571.3,0.4574]
[1759745141293,2.473,4571.4,4571.3,0.4574]
[1759745141487,4.66051367,4571.4,4571.3,0.4574]
[1759745142406,4.66051367,4571.4,4571.3,0.001]
[1759745145696,4.74807541,4571.4,4571.3,0.001]
[1759745150087,5.06206258,4571.4,4571.3,0.001]
[1759745150287,4.85767541,4571.4,4571.3,0.001]
[1759745151105,5.06208945,4571.4,4571.3,0.001]
[1759745151478,5.06128945,4571.4,4571.3,0.001]
[1759745152092,5.49118945,4571.4,4571.3,0.001]
[1759745153209,5.06128945,4571.4,4571.3,0.001]
[1759745153726,5.49118945,4571.4,4571.3,0.001]
[1759745154516,5.06128945,4571.4,4571.3,0.001]
[1759745156615,5.49118945,4571.4,4571.3,0.001]
[1759745158821,5.06128945,4571.4,4571.3,0.001]
[1759745159506,5.49118945,4571.4,4571.3,0.001]
[1759745160012,5.06128945,4571.4,4571.3,0.001]
[1759745161602,5.49118945,4571.4,4571.3,0.001]
[1759745164502,0.6336,4571.3,4570.8,1e-08]
[1759745164828,2.18775295,4570.9,4570.8,1e-08]
[1759745165124,4.97476699,4570.9,4570.8,1e-08]
[1759745165313,5.43516699,4570.9,4570.8,1e-08]
[1759745165635,4.97476699,4570.9,4570.8,1e-08]
[1759745165798,5.43316699,4570.9,4570.8,1e-08]
[1759745166000,0.77241404,4570.9,4570.8,1e-08]
[1759745166309,0.31401404,4570.9,4570.8,0.45840001]
[1759745166515,2.5826,4570.9,4570.8,0.45840001]
[1759745166727,4.77035295,4570.9,4570.8,0.45840001]
[1759745167036,4.77035295,4570.9,4570.8,1e-08]
[1759745167239,4.97510432,4570.9,4570.8,1e-08]
[1759745168714,4.97510432,4570.9,4570.8,0.45840001]
[1759745168910,2.50210432,4570.9,4570.8,0.45840001]
[1759745169231,5.43550432,4570.9,4570.8,1e-08]
[1759745170440,4.97510432,4570.9,4570.8,1e-08]
[1759745170904,5.43550432,4570.9,4570.8,1e-08]
[1759745171836,4.97510432,4570.9,4570.8,1e-08]
[1759745173016,2.50210432,4570.9,4570.8,1e-08]
[1759745173219,4.97510432,4570.9,4570.8,0.45840001]
[1759745173513,4.97510432,4570.9,4570.8,1e-08]
[1759745174111,0.77275137,4570.9,4570.8,0.45840001]
[1759745174326,0.31435137,4570.9,4570.8,0.45840001]
[1759745174525,2.78735137,4570.9,4570.8,0.45840001]
[1759745175039,4.77035295,4570.9,4570.8,0.45840001]
[1759745176043,4.76955295,4570.9,4570.8,0.45840001]
[1759745176762,2.5818,4570.9,4570.8,0.45840001]
[1759745176934,0.1088,4570.9,4570.8,0.45840001]
[1759745177131,2.5818,4570.9,4570.8,0.45840001]
[1759745177334,0.1088,4570.9,4570.8,0.45840001]
[1759745177633,2.5818,4570.9,4570.8,0.45840001]
[1759745177838,0.1088,4570.9,4570.8,0.45840001]
[1759745178034,2.5818,4570.9,4570.8,0.45840001]
[1759745178239,2.473,4570.9,4570.8,0.45840001]
[1759745178834,2.473,4570.9,4570.8,2.85840001]
[1759745179228,0.1096,4571.1,4570.8,2.85840001]
[1759745179430,2.473,4571.0,4570.9,0.4584]
[1759745180664,2.473,4571.0,4570.9,2.8584]
[1759745181164,0.1096,4571.1,4571.0,2.4]
[1759745181359,2.5826,4571.1,4571.0,2.64610509]
[1759745181562,0.1096,4571.1,4571.0,2.64610509]
[1759745181739,0.002,4571.4,4571.0,5.04610509]
[1759745182057,2.473,4571.3,4571.1,0.4584]
[1759745182579,2.473,4571.3,4571.2,2.4]
[1759745182734,2.473,4571.3,4571.2,0.4584]
[1759745183369,2.473,4571.3,4571.2,1.00254585]
[1759745184130,2.473,4571.3,4571.2,0.54414585]
[1759745184334,2.473,4571.3,4570.9,0.39544]
[1759745184536,2.473,4571.3,4571.0,0.4584]
[1759745184762,0.002,4571.4,4571.1,0.4584]
[1759745185146,2.473,4571.3,4571.1,0.4584]
[1759745185868,0.002,4571.4,4571.2,0.4584]
[1759745186051,2.473,4571.3,4571.2,0.4584]
[1759745186233,2.473,4571.3,4571.2,2.8584]
[1759745186438,2.473,4571.3,4571.2,2.64600938]
[1759745186746,0.002,4571.4,4571.2,2.64600938]
[1759745186955,0.002,4571.4,4571.3,0.4584]
[1759745187140,2.475,4571.4,4571.3,0.4584]
[1759745188535,0.002,4571.4,4571.3,0.4584]
[1759745188941,2.475,4571.4,4571.3,0.4584]
[1759745189136,0.002,4571.4,4571.3,0.4584]
[1759745189365,0.002,4571.4,4571.3,5.04596152]
[1759745189561,2.475,4571.4,4571.3,5.76932228]
[1759745189865,0.002,4571.4,4571.3,5.76932228]
[1759745190064,2.475,4571.4,4571.3,5.76932228]
[1759745190270,0.002,4571.4,4571.3,5.76932228]
[1759745190442,2.475,4571.4,4571.3,5.76932228]
[1759745190950,0.002,4571.4,4571.3,5.76932228]
[1759745191151,2.475,4571.4,4571.3,5.76932228]
[1759745192281,2.475,4571.4,4571.3,3.12336076]
[1759745192482,2.9354,4571.4,4570.8,1e-08]
[1759745192649,2.18774904,4571.0,4570.8,1e-08]
[1759745192856,4.66075295,4570.9,4570.8,1e-08]
[1759745193083,2.473,4570.9,4570.8,1e-08]
[1759745193652,4.66075295,4570.9,4570.8,1e-08]
[1759745193856,5.12625295,4570.9,4570.8,1e-08]
[1759745194482,2.9385,4570.9,4570.8,1e-08]
[1759745194673,5.12625295,4570.9,4570.8,1e-08]
[1759745196190,5.33053855,4570.9,4570.8,1e-08]
[1759745196603,5.41812061,4570.9,4570.8,1e-08]
[1759745197302,6.05172061,4570.9,4570.8,1e-08]
[1759745199171,9.18554962,4570.9,4570.8,1e-08]
[1759745200467,9.18474962,4570.9,4570.8,1e-08]
[1759745200892,11.45874962,4570.9,4570.8,1e-08]
[1759745202464,17.10217863,4570.9,4570.8,1e-08]
[1759745202706,13.96834962,4570.9,4570.8,1e-08]